[Event "*** Titled Tuesday Blitz"]
[Site "Chess.com"]
[Date "2021.02.02"]
[Round "10"]
[White "CakeinSpace2002"]
[Black "IMRosen"]
[Result "0-1"]
[WhiteElo "2370"]
[BlackElo "2551"]
[TimeControl "180+1"]
[EndTime "11:56:44 PST"]
[Termination "IMRosen won by resignation"]

1. e4 {[%clk 0:03:00.9]} 1... e5 {[%clk 0:03:00]} 2. Nf3 {[%clk 0:03:00.7]} 2...
Nf6 {[%clk 0:03:00.5]} 3. Nxe5 {[%clk 0:03:00.4]} 3... Nc6 {[%clk 0:03:01.2]} 4.
Nxc6 {[%clk 0:02:59.9]} 4... dxc6 {[%clk 0:03:02.1]} 5. Nc3 {[%clk 0:02:59.4]}
5... Bc5 {[%clk 0:03:02]} 6. Be2 {[%clk 0:02:54.3]} 6... h5 {[%clk 0:03:02]} 7.
h3 {[%clk 0:02:52.5]} 7... Qd4 {[%clk 0:03:02]} 8. O-O {[%clk 0:02:47.2]} 8...
Ng4 {[%clk 0:03:02.1]} 9. Qe1 {[%clk 0:02:42.3]} 9... Qe5 {[%clk 0:02:55.3]} 10.
Bxg4 {[%clk 0:02:33.5]} 10... hxg4 {[%clk 0:02:55.1]} 11. d4 {[%clk 0:02:22.5]}
11... Bxd4 {[%clk 0:02:52.7]} 12. Be3 {[%clk 0:02:21.7]} 12... gxh3 {[%clk
0:02:45.3]} 13. g3 {[%clk 0:02:21.7]} 13... h2+ {[%clk 0:02:40.5]} 14. Kh1
{[%clk 0:02:20.2]} 14... Bh3 {[%clk 0:02:18.7]} 15. f4 {[%clk 0:02:08.5]} 15...
Qc5 {[%clk 0:01:02]} 16. Bxd4 {[%clk 0:01:46]} 16... Qxd4 {[%clk 0:01:02.9]} 17.
Rd1 {[%clk 0:01:43.4]} 17... Qb6 {[%clk 0:00:57.2]} 18. Rf2 {[%clk 0:01:43]}
18... Bg4 {[%clk 0:00:53.5]} 19. Rd3 {[%clk 0:01:29.1]} 19... Qxb2 {[%clk
0:00:37.3]} 20. Rxh2 {[%clk 0:01:23.6]} 20... Rxh2+ {[%clk 0:00:29.8]} 21. Kxh2
{[%clk 0:01:24.5]} 21... Ke7 {[%clk 0:00:10.7]} 22. Qd2 {[%clk 0:01:14]} 22...
Qa1 {[%clk 0:00:06.9]} 23. Kg2 {[%clk 0:00:59.4]} 23... Rh8 {[%clk 0:00:07.8]}
24. Nd1 {[%clk 0:00:59.1]} 24... Qxd1 {[%clk 0:00:04.8]} 25. Rd7+ {[%clk
0:00:50.4]} 25... Ke8 {[%clk 0:00:03.2]} 26. Rd8+ {[%clk 0:00:49.7]} 26... Ke7
{[%clk 0:00:02.7]} 27. Qxd1 {[%clk 0:00:50.2]} 27... Bxd1 {[%clk 0:00:02.8]} 28.
Rxh8 {[%clk 0:00:51.1]} 28... Bxc2 {[%clk 0:00:03.3]} 29. Rb8 {[%clk 0:00:50.9]}
29... Bxe4+ {[%clk 0:00:03.1]} 30. Kf2 {[%clk 0:00:51.3]} 30... c5 {[%clk
0:00:03.6]} 31. Ke3 {[%clk 0:00:51.3]} 31... Bd5 {[%clk 0:00:03.6]} 32. Ra8
{[%clk 0:00:50.4]} 32... a6 {[%clk 0:00:04.1]} 33. g4 {[%clk 0:00:50.6]} 33...
b5 {[%clk 0:00:03.6]} 34. Rg8 {[%clk 0:00:49.4]} 34... g6 {[%clk 0:00:03.4]} 35.
Rc8 {[%clk 0:00:49.5]} 35... Kd7 {[%clk 0:00:03.4]} 36. Rh8 {[%clk 0:00:47.1]}
36... Bxa2 {[%clk 0:00:03.2]} 37. Ke4 {[%clk 0:00:45]} 37... a5 {[%clk
0:00:02.9]} 38. Ke5 {[%clk 0:00:45.4]} 38... Kc6 {[%clk 0:00:02.9]} 39. Ra8
{[%clk 0:00:42]} 39... a4 {[%clk 0:00:03.1]} 40. Ra6+ {[%clk 0:00:42.1]} 40...
Kb7 {[%clk 0:00:03.7]} 41. Ra5 {[%clk 0:00:42]} 41... Kb6 {[%clk 0:00:03.9]} 42.
Ra8 {[%clk 0:00:42.2]} 42... Be6 {[%clk 0:00:03.7]} 43. f5 {[%clk 0:00:42.1]}
43... gxf5 {[%clk 0:00:04.6]} 44. gxf5 {[%clk 0:00:43]} 44... Bc4 {[%clk
0:00:05.3]} 45. f6 {[%clk 0:00:43.1]} 45... b4 {[%clk 0:00:05.1]} 46. Rxa4
{[%clk 0:00:42.2]} 46... Kb5 {[%clk 0:00:05.6]} 47. Ra8 {[%clk 0:00:42.2]} 47...
Be6 {[%clk 0:00:05.9]} 48. Rb8+ {[%clk 0:00:43.1]} 48... Kc4 {[%clk 0:00:06.4]}
49. Re8 {[%clk 0:00:43.1]} 49... Bd5 {[%clk 0:00:06.2]} 50. Rd8 {[%clk
0:00:43.5]} 50... c6 {[%clk 0:00:06]} 51. Kd6 {[%clk 0:00:42.3]} 51... b3 {[%clk
0:00:06]} 52. Ke7 {[%clk 0:00:42.9]} 52... Kc3 {[%clk 0:00:05.9]} 53. Rxd5
{[%clk 0:00:41.6]} 53... cxd5 {[%clk 0:00:06.8]} 54. Kxf7 {[%clk 0:00:42.5]}
54... b2 {[%clk 0:00:07.4]} 55. Ke8 {[%clk 0:00:43.4]} 55... b1=Q {[%clk
0:00:08]} 56. f7 {[%clk 0:00:44.3]} 56... Qf5 {[%clk 0:00:08.5]} 57. f8=Q {[%clk
0:00:45.2]} 57... Qxf8+ {[%clk 0:00:09.4]} 58. Kxf8 {[%clk 0:00:46.1]} 58... d4
{[%clk 0:00:10.3]} 59. Ke7 {[%clk 0:00:47]} 59... d3 {[%clk 0:00:11.2]} 60. Kd6
{[%clk 0:00:47.9]} 60... c4 {[%clk 0:00:12.1]} 61. Kc6 {[%clk 0:00:48.8]} 61...
d2 {[%clk 0:00:13]} 62. Kb6 {[%clk 0:00:49.7]} 62... d1=Q {[%clk 0:00:13.9]} 0-1

[Event "*** Titled Tuesday Blitz"]
[Site "Chess.com"]
[Date "2021.02.02"]
[Round "10"]
[White "queen_iryna"]
[Black "woodhy"]
[Result "0-1"]
[WhiteElo "2321"]
[BlackElo "2458"]
[TimeControl "180+1"]
[EndTime "11:56:44 PST"]
[Termination "woodhy won by resignation"]

1. e4 {[%clk 0:03:00.9]} 1... e6 {[%clk 0:03:00.4]} 2. d4 {[%clk 0:02:59.9]}
2... d5 {[%clk 0:03:00.4]} 3. Nc3 {[%clk 0:02:59.9]} 3... Bb4 {[%clk 0:03:00.2]}
4. e5 {[%clk 0:02:59.7]} 4... c5 {[%clk 0:03:00]} 5. a3 {[%clk 0:03:00]} 5...
Bxc3+ {[%clk 0:02:59.9]} 6. bxc3 {[%clk 0:03:00.9]} 6... Ne7 {[%clk 0:03:00.4]}
7. Qg4 {[%clk 0:03:00.3]} 7... Qc7 {[%clk 0:03:00.5]} 8. Qxg7 {[%clk 0:02:58.3]}
8... Rg8 {[%clk 0:03:00.9]} 9. Qxh7 {[%clk 0:02:58.9]} 9... cxd4 {[%clk
0:03:01.6]} 10. Ne2 {[%clk 0:02:54.3]} 10... Nbc6 {[%clk 0:03:02]} 11. f4 {[%clk
0:02:51]} 11... Bd7 {[%clk 0:03:02.2]} 12. Qd3 {[%clk 0:02:45]} 12... dxc3
{[%clk 0:03:03.1]} 13. Rg1 {[%clk 0:02:26.5]} 13... O-O-O {[%clk 0:02:31.7]} 14.
g4 {[%clk 0:02:13.3]} 14... Be8 {[%clk 0:01:51]} 15. Nd4 {[%clk 0:01:37.7]}
15... Nxd4 {[%clk 0:01:27.8]} 16. Qxd4 {[%clk 0:01:38.6]} 16... Nc6 {[%clk
0:01:20.6]} 17. Qd3 {[%clk 0:01:36]} 17... d4 {[%clk 0:01:19.3]} 18. h3 {[%clk
0:01:18.2]} 18... a6 {[%clk 0:01:05.6]} 19. Bg2 {[%clk 0:01:15.9]} 19... Na5
{[%clk 0:00:36.8]} 20. Rb1 {[%clk 0:01:04.3]} 20... Bb5 {[%clk 0:00:20.2]} 21.
Qe4 {[%clk 0:00:22]} 21... Nc4 {[%clk 0:00:18]} 22. a4 {[%clk 0:00:18.7]} 22...
Bc6 {[%clk 0:00:17.5]} 23. Qe2 {[%clk 0:00:16.3]} 23... Bxg2 {[%clk 0:00:17.4]}
24. Qxg2 {[%clk 0:00:16.4]} 24... d3 {[%clk 0:00:16]} 25. cxd3 {[%clk 0:00:16]}
25... Rxd3 {[%clk 0:00:16.9]} 26. Rb4 {[%clk 0:00:15.8]} 26... Rgd8 {[%clk
0:00:15.7]} 27. Qe4 {[%clk 0:00:10.2]} 27... Rd1+ {[%clk 0:00:15.3]} 28. Kf2
{[%clk 0:00:10.3]} 28... R1d4 {[%clk 0:00:12.8]} 29. Qe2 {[%clk 0:00:08.1]}
29... Qc5 {[%clk 0:00:13]} 30. Rxc4 {[%clk 0:00:06.2]} 30... Rxc4+ {[%clk
0:00:12.8]} 31. Be3 {[%clk 0:00:06.5]} 31... Qd5 {[%clk 0:00:12.7]} 32. Rc1
{[%clk 0:00:06.2]} 32... Qd3 {[%clk 0:00:10.7]} 33. Bb6 {[%clk 0:00:05.3]} 33...
Qxe2+ {[%clk 0:00:09.9]} 34. Kxe2 {[%clk 0:00:06.2]} 34... Rd2+ {[%clk
0:00:10.1]} 35. Ke3 {[%clk 0:00:06.3]} 35... Rh2 {[%clk 0:00:10.2]} 36. a5
{[%clk 0:00:05.7]} 36... Rxh3+ {[%clk 0:00:10.2]} 37. Kf2 {[%clk 0:00:05.9]}
37... c2 {[%clk 0:00:10]} 38. Kg2 {[%clk 0:00:05.2]} 38... Rb3 {[%clk
0:00:08.9]} 39. Rh1 {[%clk 0:00:04.9]} 39... c1=Q {[%clk 0:00:08.8]} 40. Rh8+
{[%clk 0:00:04.3]} 40... Kd7 {[%clk 0:00:08.6]} 41. Rd8+ {[%clk 0:00:04.1]}
41... Ke7 {[%clk 0:00:09.1]} 42. Bc5+ {[%clk 0:00:03.1]} 42... Rxc5 {[%clk
0:00:08.9]} 43. Rd7+ {[%clk 0:00:02.9]} 43... Kxd7 {[%clk 0:00:09]} 44. f5
{[%clk 0:00:03.3]} 44... Qc2+ {[%clk 0:00:09.9]} 0-1

[Event "*** Titled Tuesday Blitz"]
[Site "Chess.com"]
[Date "2021.02.02"]
[Round "10"]
[White "ohajek96"]
[Black "canary2016"]
[Result "1-0"]
[WhiteElo "2255"]
[BlackElo "2028"]
[TimeControl "180+1"]
[EndTime "11:56:44 PST"]
[Termination "ohajek96 won by checkmate"]

1. e4 {[%clk 0:03:00.9]} 1... c5 {[%clk 0:02:56.4]} 2. Nf3 {[%clk 0:02:59.9]}
2... d6 {[%clk 0:02:54.1]} 3. Bb5+ {[%clk 0:02:59.3]} 3... Bd7 {[%clk
0:02:53.6]} 4. Bxd7+ {[%clk 0:02:57]} 4... Nxd7 {[%clk 0:02:53.9]} 5. O-O {[%clk
0:02:42.2]} 5... Ngf6 {[%clk 0:02:53.6]} 6. Re1 {[%clk 0:02:40.7]} 6... e6
{[%clk 0:02:53.5]} 7. b3 {[%clk 0:02:40.5]} 7... Be7 {[%clk 0:02:53.2]} 8. Bb2
{[%clk 0:02:40]} 8... O-O {[%clk 0:02:53.1]} 9. c4 {[%clk 0:02:39.5]} 9... Qc7
{[%clk 0:02:48.5]} 10. d4 {[%clk 0:02:38.8]} 10... cxd4 {[%clk 0:02:47.4]} 11.
Nxd4 {[%clk 0:02:39.1]} 11... a6 {[%clk 0:02:45.2]} 12. Nc3 {[%clk 0:02:36.9]}
12... h6 {[%clk 0:02:40.1]} 13. a4 {[%clk 0:02:36.4]} 13... Rac8 {[%clk
0:02:33.5]} 14. Qd3 {[%clk 0:02:35.2]} 14... Nc5 {[%clk 0:02:30]} 15. Qc2 {[%clk
0:02:29.6]} 15... Rfd8 {[%clk 0:02:20.4]} 16. Rad1 {[%clk 0:02:29.1]} 16... Qb6
{[%clk 0:02:05.1]} 17. Ba1 {[%clk 0:01:59.7]} 17... d5 {[%clk 0:01:26.7]} 18.
exd5 {[%clk 0:01:56.9]} 18... Bf8 {[%clk 0:01:16.7]} 19. dxe6 {[%clk 0:01:53.4]}
19... Nxe6 {[%clk 0:01:16.3]} 20. Nxe6 {[%clk 0:01:52.6]} 20... Rxd1 {[%clk
0:01:14.7]} 21. Rxd1 {[%clk 0:01:51.6]} 21... Qxe6 {[%clk 0:01:12.5]} 22. h3
{[%clk 0:01:46.1]} 22... Re8 {[%clk 0:01:03.1]} 23. Bb2 {[%clk 0:01:22.9]} 23...
Nh5 {[%clk 0:00:47.9]} 24. Nd5 {[%clk 0:01:17.3]} 24... Bd6 {[%clk 0:00:30.2]}
25. Qc3 {[%clk 0:01:01.2]} 25... Be5 {[%clk 0:00:26.8]} 26. Qxe5 {[%clk
0:00:57.5]} 26... Qxe5 {[%clk 0:00:25]} 27. Bxe5 {[%clk 0:00:58.4]} 27... Rxe5
{[%clk 0:00:25.1]} 28. g4 {[%clk 0:00:54.4]} 28... Nf6 {[%clk 0:00:24.2]} 29.
Nxf6+ {[%clk 0:00:54.3]} 29... gxf6 {[%clk 0:00:25.1]} 30. Rd7 {[%clk
0:00:52.2]} 30... b5 {[%clk 0:00:21.4]} 31. axb5 {[%clk 0:00:47.3]} 31... axb5
{[%clk 0:00:21.3]} 32. Rc7 {[%clk 0:00:41.4]} 32... Re1+ {[%clk 0:00:10.8]} 33.
Kg2 {[%clk 0:00:40.4]} 33... Rc1 {[%clk 0:00:11]} 34. Rc5 {[%clk 0:00:35.3]}
34... bxc4 {[%clk 0:00:09.8]} 35. Rxc4 {[%clk 0:00:33.7]} 35... Rb1 {[%clk
0:00:09.3]} 36. Rc3 {[%clk 0:00:33.5]} 36... Kg7 {[%clk 0:00:08.9]} 37. Kg3
{[%clk 0:00:32.2]} 37... Kg6 {[%clk 0:00:09]} 38. h4 {[%clk 0:00:32.1]} 38...
Rb2 {[%clk 0:00:08.1]} 39. Re3 {[%clk 0:00:29]} 39... f5 {[%clk 0:00:05.9]} 40.
f3 {[%clk 0:00:24.5]} 40... fxg4 {[%clk 0:00:04.2]} 41. fxg4 {[%clk 0:00:24]}
41... Rb1 {[%clk 0:00:03.3]} 42. Kf4 {[%clk 0:00:22.6]} 42... Rb2 {[%clk
0:00:03.5]} 43. Rc3 {[%clk 0:00:19.4]} 43... Kf6 {[%clk 0:00:03.4]} 44. Rc6+
{[%clk 0:00:17.5]} 44... Kg7 {[%clk 0:00:03.5]} 45. Rb6 {[%clk 0:00:17.1]} 45...
f6 {[%clk 0:00:02.9]} 46. Rb7+ {[%clk 0:00:13]} 46... Kg6 {[%clk 0:00:02.7]} 47.
h5# {[%clk 0:00:12.6]} 1-0

[Event "*** Titled Tuesday Blitz"]
[Site "Chess.com"]
[Date "2021.02.02"]
[Round "10"]
[White "Vnebo"]
[Black "Korchmar_Vasiliy"]
[Result "1-0"]
[WhiteElo "2737"]
[BlackElo "2590"]
[TimeControl "180+1"]
[EndTime "11:56:45 PST"]
[Termination "Vnebo won by resignation"]

1. c4 {[%clk 0:03:00.9]} 1... c5 {[%clk 0:02:59]} 2. g3 {[%clk 0:03:00]} 2... g6
{[%clk 0:02:58.2]} 3. Bg2 {[%clk 0:03:00.4]} 3... Bg7 {[%clk 0:02:55]} 4. Nc3
{[%clk 0:03:00.6]} 4... Nc6 {[%clk 0:02:55.4]} 5. Nf3 {[%clk 0:03:00.5]} 5... d6
{[%clk 0:02:55.6]} 6. O-O {[%clk 0:03:00.1]} 6... e6 {[%clk 0:02:56.2]} 7. d3
{[%clk 0:02:57.6]} 7... Nge7 {[%clk 0:02:56.3]} 8. Qd2 {[%clk 0:02:56.4]} 8...
O-O {[%clk 0:02:54.7]} 9. b3 {[%clk 0:02:56.1]} 9... d5 {[%clk 0:02:53.4]} 10.
cxd5 {[%clk 0:02:46.2]} 10... exd5 {[%clk 0:02:54.3]} 11. Bb2 {[%clk 0:02:46.4]}
11... b6 {[%clk 0:02:45]} 12. d4 {[%clk 0:02:25.8]} 12... Nxd4 {[%clk 0:02:36]}
13. Nxd4 {[%clk 0:02:24.9]} 13... Bxd4 {[%clk 0:02:35.3]} 14. e3 {[%clk
0:02:20.6]} 14... Bg7 {[%clk 0:02:29.7]} 15. Nxd5 {[%clk 0:02:10.7]} 15... Bxb2
{[%clk 0:02:07.8]} 16. Qxb2 {[%clk 0:01:08.9]} 16... Nxd5 {[%clk 0:02:06]} 17.
Rfd1 {[%clk 0:01:04.6]} 17... Be6 {[%clk 0:01:54.2]} 18. Bxd5 {[%clk 0:01:03.7]}
18... Bxd5 {[%clk 0:01:55.1]} 19. Qe5 {[%clk 0:01:02.3]} 19... Re8 {[%clk
0:01:18.9]} 20. Qxd5 {[%clk 0:01:00.1]} 20... Qf6 {[%clk 0:01:19.4]} 21. Qd6
{[%clk 0:00:49.3]} 21... Re6 {[%clk 0:01:19.4]} 22. Qd7 {[%clk 0:00:38.7]} 22...
h5 {[%clk 0:01:17]} 23. h4 {[%clk 0:00:37.8]} 23... Rae8 {[%clk 0:00:41.4]} 24.
Rac1 {[%clk 0:00:36.8]} 24... Qf3 {[%clk 0:00:27.2]} 25. Qd5 {[%clk 0:00:21]}
25... Qf6 {[%clk 0:00:14.9]} 26. Rc4 {[%clk 0:00:18.4]} 26... Qb2 {[%clk
0:00:10.6]} 27. Qd2 {[%clk 0:00:18.1]} 27... Qf6 {[%clk 0:00:10.4]} 28. Rc3
{[%clk 0:00:16.2]} 28... Re4 {[%clk 0:00:07.9]} 29. Rd3 {[%clk 0:00:16.1]} 29...
Qf3 {[%clk 0:00:07.2]} 30. Rd7 {[%clk 0:00:13.7]} 30... Kg7 {[%clk 0:00:05.8]}
31. Qc3+ {[%clk 0:00:13.5]} 31... Kh7 {[%clk 0:00:04.3]} 32. Qd2 {[%clk
0:00:10.5]} 32... R8e7 {[%clk 0:00:04.1]} 33. Rxe7 {[%clk 0:00:08.2]} 33... Rxe7
{[%clk 0:00:05]} 34. Qd5 {[%clk 0:00:08.7]} 34... Re4 {[%clk 0:00:04.4]} 35. Rd2
{[%clk 0:00:07.5]} 35... b5 {[%clk 0:00:03.8]} 36. Qxc5 {[%clk 0:00:06.3]} 36...
a6 {[%clk 0:00:03.3]} 37. Qd5 {[%clk 0:00:06.3]} 37... b4 {[%clk 0:00:02.8]} 38.
Rd4 {[%clk 0:00:05.8]} 38... Rxe3 {[%clk 0:00:03.1]} 39. fxe3 {[%clk 0:00:05]}
39... Qxg3+ {[%clk 0:00:01.9]} 40. Kf1 {[%clk 0:00:05.4]} 40... Qh3+ {[%clk
0:00:01.6]} 41. Ke2 {[%clk 0:00:05.1]} 41... Qh2+ {[%clk 0:00:02.1]} 42. Kd3
{[%clk 0:00:04.9]} 1-0

[Event "*** Titled Tuesday Blitz"]
[Site "Chess.com"]
[Date "2021.02.02"]
[Round "10"]
[White "davidkalashian"]
[Black "vinniethepooh"]
[Result "1-0"]
[WhiteElo "2601"]
[BlackElo "2714"]
[TimeControl "180+1"]
[EndTime "11:56:46 PST"]
[Termination "davidkalashian won by checkmate"]

1. d4 {[%clk 0:03:00.9]} 1... Nf6 {[%clk 0:03:00]} 2. c4 {[%clk 0:03:00.5]} 2...
e6 {[%clk 0:03:00.5]} 3. Nf3 {[%clk 0:03:00.2]} 3... d5 {[%clk 0:03:00.9]} 4.
Nc3 {[%clk 0:03:00]} 4... c6 {[%clk 0:03:01.5]} 5. Qd3 {[%clk 0:02:57.5]} 5...
dxc4 {[%clk 0:03:01.5]} 6. Qxc4 {[%clk 0:02:57.4]} 6... b5 {[%clk 0:03:02.2]} 7.
Qb3 {[%clk 0:02:56.3]} 7... a6 {[%clk 0:02:59.8]} 8. Bg5 {[%clk 0:02:51]} 8...
c5 {[%clk 0:02:52.6]} 9. dxc5 {[%clk 0:02:30.3]} 9... Bxc5 {[%clk 0:02:50.5]}
10. Rd1 {[%clk 0:02:23.9]} 10... Qb6 {[%clk 0:02:37.7]} 11. e3 {[%clk 0:02:22]}
11... Bb7 {[%clk 0:02:37.2]} 12. Be2 {[%clk 0:02:18.6]} 12... Nbd7 {[%clk
0:02:32.9]} 13. O-O {[%clk 0:01:55.1]} 13... O-O {[%clk 0:02:27.8]} 14. Rd2
{[%clk 0:01:52.9]} 14... Bc6 {[%clk 0:02:00.2]} 15. Rfd1 {[%clk 0:01:51.5]}
15... Rab8 {[%clk 0:01:51.9]} 16. Bf4 {[%clk 0:01:46.5]} 16... Rb7 {[%clk
0:01:48.2]} 17. Ne5 {[%clk 0:01:41.9]} 17... Nxe5 {[%clk 0:01:38.4]} 18. Bxe5
{[%clk 0:01:42.8]} 18... Be7 {[%clk 0:01:17.1]} 19. h3 {[%clk 0:01:28.5]} 19...
b4 {[%clk 0:01:17.1]} 20. Nb1 {[%clk 0:01:16.2]} 20... Bd5 {[%clk 0:01:15.3]}
21. Qd3 {[%clk 0:01:13.4]} 21... Nd7 {[%clk 0:00:43.6]} 22. Bd4 {[%clk
0:01:09.5]} 22... Nc5 {[%clk 0:00:36]} 23. Bxc5 {[%clk 0:00:48.2]} 23... Bxc5
{[%clk 0:00:36.9]} 24. b3 {[%clk 0:00:48.6]} 24... a5 {[%clk 0:00:34.6]} 25. Bf1
{[%clk 0:00:46.8]} 25... Qc6 {[%clk 0:00:33.5]} 26. Rc1 {[%clk 0:00:43.1]} 26...
Rc8 {[%clk 0:00:13.5]} 27. e4 {[%clk 0:00:35]} 27... Bxe4 {[%clk 0:00:11.6]} 28.
Rxc5 {[%clk 0:00:33.8]} 28... Qxc5 {[%clk 0:00:05]} 29. Qxe4 {[%clk 0:00:32.6]}
29... Rbc7 {[%clk 0:00:05]} 30. Rd4 {[%clk 0:00:27.8]} 30... Qc1 {[%clk
0:00:04.7]} 31. Nd2 {[%clk 0:00:27.4]} 31... g6 {[%clk 0:00:04.1]} 32. h4 {[%clk
0:00:26.9]} 32... Rc2 {[%clk 0:00:03.7]} 33. h5 {[%clk 0:00:21.5]} 33... Rxd2
{[%clk 0:00:03.4]} 34. Rxd2 {[%clk 0:00:08.2]} 34... Qxd2 {[%clk 0:00:03.7]} 35.
Qe5 {[%clk 0:00:07.5]} 35... Qc3 {[%clk 0:00:04]} 36. Qxa5 {[%clk 0:00:06.4]}
36... Kg7 {[%clk 0:00:03.6]} 37. Qg5 {[%clk 0:00:06]} 37... Rc5 {[%clk
0:00:02.3]} 38. h6+ {[%clk 0:00:05.2]} 38... Kg8 {[%clk 0:00:02.8]} 39. Qd8#
{[%clk 0:00:05.4]} 1-0

[Event "*** Titled Tuesday Blitz"]
[Site "Chess.com"]
[Date "2021.02.02"]
[Round "10"]
[White "Tenamu"]
[Black "L1m96"]
[Result "0-1"]
[WhiteElo "2410"]
[BlackElo "2563"]
[TimeControl "180+1"]
[EndTime "11:56:47 PST"]
[Termination "L1m96 won by checkmate"]

1. e4 {[%clk 0:03:00.8]} 1... e5 {[%clk 0:02:58.3]} 2. Nf3 {[%clk 0:03:00.6]}
2... Nc6 {[%clk 0:02:58.5]} 3. d4 {[%clk 0:03:01.1]} 3... exd4 {[%clk
0:02:58.5]} 4. Nxd4 {[%clk 0:03:02]} 4... Nf6 {[%clk 0:02:58.6]} 5. Nc3 {[%clk
0:03:02]} 5... Bb4 {[%clk 0:02:58.5]} 6. Nxc6 {[%clk 0:03:01.5]} 6... bxc6
{[%clk 0:02:59.4]} 7. Bd3 {[%clk 0:03:01.2]} 7... d5 {[%clk 0:02:59.6]} 8. exd5
{[%clk 0:02:57.6]} 8... cxd5 {[%clk 0:03:00.5]} 9. O-O {[%clk 0:02:57.9]} 9...
O-O {[%clk 0:03:00.9]} 10. h3 {[%clk 0:02:56.6]} 10... c6 {[%clk 0:02:55.6]} 11.
Qf3 {[%clk 0:02:55.2]} 11... Re8 {[%clk 0:02:49.7]} 12. Bf4 {[%clk 0:02:54.1]}
12... Bd6 {[%clk 0:02:48.7]} 13. Rad1 {[%clk 0:02:52.7]} 13... Rb8 {[%clk
0:02:43.7]} 14. b3 {[%clk 0:02:51.4]} 14... Be6 {[%clk 0:02:37.3]} 15. Ne2
{[%clk 0:02:49.9]} 15... c5 {[%clk 0:02:33.1]} 16. Rfe1 {[%clk 0:02:42.4]} 16...
Qc7 {[%clk 0:02:30.8]} 17. Bg5 {[%clk 0:02:37.5]} 17... Be5 {[%clk 0:02:15.4]}
18. Nf4 {[%clk 0:02:31.1]} 18... h6 {[%clk 0:01:43.4]} 19. Nxe6 {[%clk
0:02:25.7]} 19... Rxe6 {[%clk 0:01:41.9]} 20. Bxf6 {[%clk 0:02:25.9]} 20... Rxf6
{[%clk 0:01:32]} 21. Qxd5 {[%clk 0:02:25.3]} 21... Bd4 {[%clk 0:01:31.5]} 22.
Re2 {[%clk 0:02:19.3]} 22... Qf4 {[%clk 0:01:24.3]} 23. Rf1 {[%clk 0:02:16.4]}
23... g6 {[%clk 0:01:21.9]} 24. Bc4 {[%clk 0:02:02.7]} 24... Kg7 {[%clk
0:01:17]} 25. Qd7 {[%clk 0:01:47.8]} 25... a6 {[%clk 0:01:14.2]} 26. Bd3 {[%clk
0:01:33.5]} 26... h5 {[%clk 0:01:13.8]} 27. Re4 {[%clk 0:01:32.5]} 27... Bxf2+
{[%clk 0:01:12.5]} 28. Kh1 {[%clk 0:01:31.1]} 28... Qg3 {[%clk 0:01:07.1]} 29.
Re7 {[%clk 0:01:27.7]} 29... Rf8 {[%clk 0:00:57.1]} 30. Bc4 {[%clk 0:01:25.9]}
30... g5 {[%clk 0:00:22.8]} 31. Qd2 {[%clk 0:00:50.4]} 31... Rb8 {[%clk
0:00:13.3]} 32. Re2 {[%clk 0:00:37.4]} 32... Bd4 {[%clk 0:00:11.1]} 33. Rxf6
{[%clk 0:00:37.1]} 33... Bxf6 {[%clk 0:00:11.3]} 34. Qd5 {[%clk 0:00:36.1]}
34... Qc7 {[%clk 0:00:09.1]} 35. Rf2 {[%clk 0:00:33]} 35... Rd8 {[%clk
0:00:08.7]} 36. Qf5 {[%clk 0:00:33.1]} 36... Rd1+ {[%clk 0:00:08.6]} 37. Bf1
{[%clk 0:00:29.8]} 37... Qd6 {[%clk 0:00:07.1]} 38. Qf3 {[%clk 0:00:27.5]} 38...
Re1 {[%clk 0:00:05.5]} 39. Qxh5 {[%clk 0:00:26.4]} 39... Qg3 {[%clk 0:00:04.1]}
40. Qf3 {[%clk 0:00:26.4]} 40... Be5 {[%clk 0:00:02.2]} 41. Qxf7+ {[%clk
0:00:25.9]} 41... Kh6 {[%clk 0:00:02.2]} 42. Qe6+ {[%clk 0:00:25.5]} 42... Kh5
{[%clk 0:00:01.4]} 43. Qf7+ {[%clk 0:00:16.1]} 43... Kh6 {[%clk 0:00:01.2]} 44.
Qf8+ {[%clk 0:00:16.6]} 44... Kh5 {[%clk 0:00:01.8]} 45. Qf5 {[%clk 0:00:15.3]}
45... Qh2# {[%clk 0:00:01.8]} 0-1

[Event "*** Titled Tuesday Blitz"]
[Site "Chess.com"]
[Date "2021.02.02"]
[Round "10"]
[White "enriquetejedor"]
[Black "Kostya_Nikologorskiy"]
[Result "1-0"]
[WhiteElo "2530"]
[BlackElo "2647"]
[TimeControl "180+1"]
[EndTime "11:56:49 PST"]
[Termination "enriquetejedor won by resignation"]

1. b3 {[%clk 0:02:52.9]} 1... e5 {[%clk 0:02:58.8]} 2. Bb2 {[%clk 0:02:51.7]}
2... Nc6 {[%clk 0:02:58.7]} 3. e3 {[%clk 0:02:49.9]} 3... Nf6 {[%clk 0:02:54.9]}
4. Bb5 {[%clk 0:02:34.8]} 4... d6 {[%clk 0:02:53.9]} 5. d4 {[%clk 0:02:23.7]}
5... exd4 {[%clk 0:02:51.3]} 6. Qxd4 {[%clk 0:02:21.3]} 6... Bd7 {[%clk
0:02:49.4]} 7. Qd1 {[%clk 0:02:12.2]} 7... a6 {[%clk 0:02:42.5]} 8. Bxc6 {[%clk
0:02:11.5]} 8... Bxc6 {[%clk 0:02:42.2]} 9. Nf3 {[%clk 0:02:12.4]} 9... Qd7
{[%clk 0:02:36.9]} 10. O-O {[%clk 0:02:04.5]} 10... Qg4 {[%clk 0:02:28]} 11. h3
{[%clk 0:02:00.8]} 11... Bxf3 {[%clk 0:02:16.6]} 12. Qxf3 {[%clk 0:01:55.3]}
12... Qxf3 {[%clk 0:02:16.9]} 13. gxf3 {[%clk 0:01:56.2]} 13... Be7 {[%clk
0:02:08.3]} 14. Kh2 {[%clk 0:01:51.8]} 14... O-O-O {[%clk 0:02:07.3]} 15. Rg1
{[%clk 0:01:50.4]} 15... g6 {[%clk 0:02:05.3]} 16. Nd2 {[%clk 0:01:47.2]} 16...
d5 {[%clk 0:02:02.1]} 17. Rad1 {[%clk 0:01:45.7]} 17... Rhe8 {[%clk 0:02:01.2]}
18. c4 {[%clk 0:01:43.2]} 18... c6 {[%clk 0:01:50.1]} 19. cxd5 {[%clk
0:01:31.1]} 19... Nxd5 {[%clk 0:01:51]} 20. Nc4 {[%clk 0:01:29.6]} 20... b5
{[%clk 0:01:18.5]} 21. Ne5 {[%clk 0:01:09.3]} 21... Bd6 {[%clk 0:01:15.9]} 22.
f4 {[%clk 0:01:04.2]} 22... Bxe5 {[%clk 0:01:13.6]} 23. Bxe5 {[%clk 0:01:02.9]}
23... f6 {[%clk 0:00:57.5]} 24. Bd4 {[%clk 0:00:53.6]} 24... Re6 {[%clk
0:00:38.4]} 25. a3 {[%clk 0:00:51.1]} 25... a5 {[%clk 0:00:29.1]} 26. Rd2 {[%clk
0:00:43.2]} 26... f5 {[%clk 0:00:24.5]} 27. Rc1 {[%clk 0:00:35.2]} 27... Kb7
{[%clk 0:00:21.4]} 28. Kg3 {[%clk 0:00:25.6]} 28... Re4 {[%clk 0:00:19.6]} 29.
Bf6 {[%clk 0:00:21.1]} 29... Rd7 {[%clk 0:00:18.8]} 30. Be5 {[%clk 0:00:17.2]}
30... g5 {[%clk 0:00:17.8]} 31. Kf3 {[%clk 0:00:06.3]} 31... gxf4 {[%clk
0:00:17.7]} 32. exf4 {[%clk 0:00:07.2]} 32... a4 {[%clk 0:00:17]} 33. b4 {[%clk
0:00:06]} 33... Kb6 {[%clk 0:00:12.7]} 34. Rcd1 {[%clk 0:00:05.4]} 34... Rd8
{[%clk 0:00:10.9]} 35. Rd4 {[%clk 0:00:05.4]} 35... Rg8 {[%clk 0:00:06.8]} 36.
Rxe4 {[%clk 0:00:04.5]} 36... fxe4+ {[%clk 0:00:07.7]} 37. Kxe4 {[%clk
0:00:04.8]} 37... Rg2 {[%clk 0:00:08]} 38. f5 {[%clk 0:00:02.9]} 38... Rxf2
{[%clk 0:00:07.9]} 39. Bd4+ {[%clk 0:00:03.3]} 39... Kc7 {[%clk 0:00:07.3]} 40.
Bxf2 {[%clk 0:00:03.2]} 40... Nc3+ {[%clk 0:00:07.8]} 41. Ke5 {[%clk 0:00:03.6]}
41... Nxd1 {[%clk 0:00:07.5]} 42. Bc5 {[%clk 0:00:03.9]} 42... Ne3 {[%clk
0:00:06.9]} 43. Bxe3 {[%clk 0:00:03.1]} 43... Kd7 {[%clk 0:00:06.7]} 44. Kf6
{[%clk 0:00:03.1]} 1-0